[Event "GER-ch Youth U12 2020"]
[Site "Willingen"]
[Date "2020.10.29"]
[Round "4.26"]
[White "Schneble, Milan"]
[Black "Detjen, Mattes"]
[Result "1-0"]
[ECO "D00"]
[WhiteElo "1418"]
[BlackElo "1190"]
[Annotator "NA RC"]
[PlyCount "105"]
[EventDate "2020.10.27"]
[EventType "swiss"]
[EventRounds "7"]
[EventCountry "GER"]
[SourceTitle "playchess.com"]
[Source "ChessBase"]
[SourceQuality "1"]
[TimeControl "40/5400+30:1800+30"]

1. d4 {[%emt 0:00:00]} d5 {[%emt 0:00:00]} 2. e3 {[%emt 0:00:00]} Nf6 {[%emt 0:00:00]} 3. c4 {[%emt 0:00:00]} e6 {[%emt 0:00:38]} 4. Nf3 {[%emt 0:00:07]} Be7 {[%emt 0:01:36]} 5. Nc3 {[%emt 0:00:14]} O-O {[%emt 0:00:34]} 6. Bd3 {[%emt 0:00:08]} b6 {[%emt 0:00:31]} 7. Qc2 {[%emt 0:00:15]} Bb7 {[%emt 0:01:36]} 8. cxd5 {[%emt 0:00:21]} exd5 {[%emt 0:00:18]} 9. O-O {[%emt 0:00:37]} c5 {[%emt 0:00:36]} 10. dxc5 {[%emt 0:00:13]} bxc5 {[%emt 0:00:21]} 11. Rd1 {[%emt 0:04:20]} d4 {[%emt 0:00:48]} 12. exd4 {[%emt 0:01:01]} Bxf3 {[%emt 0:00:18]} 13. gxf3 {[%emt 0:00:05]} cxd4 {[%emt 0:00:43]} 14. Ne4 {[%emt 0:00:21]} Nbd7 {[%emt 0:00:42]} 15. Kh1 {[%emt 0:01:24]} Rc8 {[%emt 0:00:26]} 16. Qe2 {[%emt 0:01:00]} Nh5 {[%emt 0:02:14]} 17. Rg1 {[%emt 0:01:57]} Ndf6 {[%emt 0:02:06]} 18. Nxf6+ {[%emt 0:00:40]} Bxf6 {[%emt 0:00:11]} 19. Qe4 {[%emt 0:00:22]} g6 {[%emt 0:00:37]} 20. Qg4 {[%emt 0:01:28]} Bg7 {[%emt 0:00:57]} 21. Bd2 {[%emt 0:04:02]} Qd6 {[%emt 0:02:16]} 22. a3 {[%emt 0:02:00]} Qd5 {[%emt 0:03:45]} 23. Rge1 {[%emt 0:07:23]} Nf6 {[%emt 0:00:52]} 24. Qf4 {[%emt 0:06:30]} Nh5 {[%emt 0:01:47]} 25. Qe4 {[%emt 0:00:45]} Qd7 {[%emt 0:01:02]} 26. Rac1 {[%emt 0:03:22]} Rce8 {[%emt 0:02:05]} 27. Qh4 {[%emt 0:02:40]} Rxe1+ {[%emt 0:01:05]} 28. Rxe1 {[%emt 0:00:13]} Qb7 {[%emt 0:00:57]} 29. Qe4 {[%emt 0:02:11]} Qxb2 {[%emt 0:01:46]} 30. Bb4 {[%emt 0:00:55]} Qxf2 {[%emt 0:00:19]} 31. Bxf8 {[%emt 0:00:14]} Bxf8 {[%emt 0:01:22]} 32. Rf1 {[%emt 0:01:00]} Qe3 {[%emt 0:00:30]} 33. Re1 {[%emt 0:02:13]} Qxe4 {[%emt 0:00:46]} 34. Rxe4 {[%emt 0:00:14]} Bc5 {[%emt 0:00:16]} 35. a4 {[%emt 0:00:31]} f5 {[%emt 0:00:33]} 36. Re8+ {[%emt 0:00:30]} Kf7 {[%emt 0:00:30]} 37. Rc8 {[%emt 0:00:24]} Bb6 {[%emt 0:00:24]} 38. Rc4 {[%emt 0:02:08]} a5 {[%emt 0:01:12]} 39. Rc6 {[%emt 0:01:09]} Bd8 {[%emt 0:02:13]} 40. Rd6 {[%emt 0:00:16]} Bf6 {[%emt 0:00:38]} 41. Ra6 {[%emt 0:31:06]} Bd8 {[%emt 0:30:19]} 42. Ra7+ {[%emt 0:01:43]} Kg8 {[%emt 0:00:55]} 43. Ra8 {[%emt 0:00:22]} Kg7 {[%emt 0:01:58]} 44. Rxd8 {[%emt 0:00:11]} Kh6 {[%emt 0:00:02]} 45. Rxd4 {[%emt 0:00:14]} Kg5 {[%emt 0:00:28]} 46. Rc4 {[%emt 0:02:27]} h6 {[%emt 0:00:55]} 47. h4+ {[%emt 0:00:38]} Kf6 {[%emt 0:00:20]} 48. Rc6+ {[%emt 0:00:06]} Kf7 {[%emt 0:00:20]} 49. Kg1 {[%emt 0:00:52]} Nf4 {[%emt 0:00:31]} 50. Bc4+ {[%emt 0:00:39]} Kg7 {[%emt 0:00:44]} 51. Ra6 {[%emt 0:00:19]} g5 {[%emt 0:00:41]} 52. hxg5 {[%emt 0:00:21]} hxg5 {[%emt 0:00:06]} 53. Rxa5 {[%emt 0:00:05]} 1-0

[Event "GER-ch Youth U12 2020"]
[Site "Willingen"]
[Date "2020.10.29"]
[Round "4.27"]
[White "Müller, Mitja"]
[Black "Ehrlich, Patrick"]
[Result "1/2-1/2"]
[ECO "B07"]
[WhiteElo "1360"]
[BlackElo "1448"]
[Annotator "NA RC"]
[PlyCount "63"]
[EventDate "2020.10.27"]
[EventType "swiss"]
[EventRounds "7"]
[EventCountry "GER"]
[SourceTitle "playchess.com"]
[Source "ChessBase"]
[SourceQuality "1"]
[TimeControl "40/5400+30:1800+30"]

1. d4 {[%emt 0:00:00]} d6 {[%emt 0:00:00]} 2. e4 {[%emt 0:00:00]} Nf6 {[%emt 0:00:00]} 3. Nc3 {[%emt 0:00:00]} g6 {[%emt 0:00:00]} 4. Be3 {[%emt 0:00:00]} c6 {[%emt 0:00:01]} 5. Qd2 {[%emt 0:00:17]} b5 {[%emt 0:00:09]} 6. f3 {[%emt 0:00:13]} Nbd7 {[%emt 0:00:29]} 7. h4 {[%emt 0:00:14]} Nb6 {[%emt 0:00:09]} 8. O-O-O {[%emt 0:00:48]} a5 {[%emt 0:04:28]} 9. g4 {[%emt 0:04:44]} b4 {[%emt 0:00:53]} 10. Nb1 {[%emt 0:01:11]} Ba6 {[%emt 0:01:50]} 11. Bxa6 {[%emt 0:02:52]} Rxa6 {[%emt 0:00:08]} 12. Qd3 {[%emt 0:02:09]} Qc8 {[%emt 0:03:56]} 13. c3 {[%emt 0:12:04]} bxc3 {[%emt 0:03:22]} 14. Nxc3 {[%emt 0:00:25]} Ra7 {[%emt 0:11:17]} 15. Rh2 {[%emt 0:07:41]} Rd7 {[%emt 0:12:40]} 16. d5 {[%emt 0:03:32]} Qc7 {[%emt 0:01:30]} 17. dxc6 {[%emt 0:02:34]} Qxc6 {[%emt 0:00:55]} 18. Bxb6 {[%emt 0:05:27]} Qxb6 {[%emt 0:02:37]} 19. Qd4 {[%emt 0:01:47]} Qc7 {[%emt 0:05:15]} 20. Kb1 {[%emt 0:04:49]} d5 {[%emt 0:07:18]} 21. e5 {[%emt 0:03:19]} Ng8 {[%emt 0:02:10]} 22. Nxd5 {[%emt 0:05:16]} Qc6 {[%emt 0:09:02]} 23. Rc2 {[%emt 0:01:34]} Qa8 {[%emt 0:06:37]} 24. Nc7+ {[%emt 0:01:54]} Rxc7 {[%emt 0:00:18]} 25. Rxc7 {[%emt 0:00:58]} f6 {[%emt 0:00:15]} 26. e6 {[%emt 0:00:49]} Bh6 {[%emt 0:01:46]} 27. Qd7+ {[%emt 0:01:11]} Kf8 {[%emt 0:00:12]} 28. Rc8+ {[%emt 0:00:22]} Qxc8 {[%emt 0:00:13]} 29. Qxc8+ {[%emt 0:00:10]} Kg7 {[%emt 0:00:04]} 30. Qe8 {[%emt 0:01:06]} Be3 {[%emt 0:00:34]} 31. Qf7+ {[%emt 0:00:45]} Kh6 {[%emt 0:00:44]} 32. Qf8# {[%emt 0:00:16]} 1/2-1/2

[Event "GER-ch Youth U12 2020"]
[Site "Willingen"]
[Date "2020.10.29"]
[Round "4.28"]
[White "Bondarcuks, Timurs"]
[Black "Stadelmann, Constantin"]
[Result "0-1"]
[ECO "B01"]
[WhiteElo "1198"]
[BlackElo "1366"]
[Annotator "NA RC"]
[PlyCount "94"]
[EventDate "2020.10.27"]
[EventType "swiss"]
[EventRounds "7"]
[EventCountry "GER"]
[SourceTitle "playchess.com"]
[Source "ChessBase"]
[SourceQuality "1"]
[TimeControl "40/5400+30:1800+30"]

1. e4 {[%emt 0:00:00]} d5 {[%emt 0:00:00]} 2. exd5 {[%emt 0:00:00]} Qxd5 {[%emt 0:00:00]} 3. Nc3 {[%emt 0:00:00]} Qa5 {[%emt 0:00:00]} 4. d4 {[%emt 0:00:00]} Nf6 {[%emt 0:00:06]} 5. Nf3 {[%emt 0:00:10]} c6 {[%emt 0:00:14]} 6. Bc4 {[%emt 0:00:18]} Bf5 {[%emt 0:00:44]} 7. Bd2 {[%emt 0:00:27]} e6 {[%emt 0:00:29]} 8. Nd5 {[%emt 0:00:57]} Qd8 {[%emt 0:00:13]} 9. Nxf6+ {[%emt 0:00:12]} Qxf6 {[%emt 0:00:13]} 10. Bb3 {[%emt 0:00:20]} Nd7 {[%emt 0:00:22]} 11. Qe2 {[%emt 0:01:12]} O-O-O {[%emt 0:02:39]} 12. O-O-O {[%emt 0:00:16]} Bd6 {[%emt 0:01:00]} 13. Kb1 {[%emt 0:01:42]} Rhe8 {[%emt 0:00:35]} 14. Bc3 {[%emt 0:03:45]} Qg6 {[%emt 0:04:11]} 15. Rhg1 {[%emt 0:06:05]} Nb6 {[%emt 0:01:35]} 16. h3 {[%emt 0:00:53]} Nd5 {[%emt 0:04:01]} 17. g4 {[%emt 0:06:19]} Be4 {[%emt 0:02:37]} 18. Nh4 {[%emt 0:05:55]} Qg5 {[%emt 0:01:44]} 19. Qxe4 {[%emt 0:02:11]} Qxh4 {[%emt 0:00:50]} 20. Bxd5 {[%emt 0:00:46]} exd5 {[%emt 0:03:08]} 21. Qf5+ {[%emt 0:02:22]} Kb8 {[%emt 0:00:58]} 22. Qxf7 {[%emt 0:02:50]} Re7 {[%emt 0:00:49]} 23. Qf3 {[%emt 0:01:10]} Rde8 {[%emt 0:00:58]} 24. Rge1 {[%emt 0:03:47]} Re4 {[%emt 0:05:24]} 25. Rxe4 {[%emt 0:06:41]} dxe4 {[%emt 0:00:29]} 26. Qg2 {[%emt 0:00:44]} Qg5 {[%emt 0:06:30]} 27. Re1 {[%emt 0:03:25]} Qf4 {[%emt 0:05:30]} 28. f3 {[%emt 0:04:50]} e3 {[%emt 0:01:53]} 29. Bd2 {[%emt 0:01:38]} Kc7 {[%emt 0:00:47]} 30. Qe2 {[%emt 0:01:17]} exd2 {[%emt 0:00:44]} 31. Qxe8 dxe1=Q+ 32. Qxe1 {[%emt 0:02:48]} Qxf3 {[%emt 0:01:45]} 33. Qa5+ Kd7 {[%emt 0:00:27]} 34. Qf5+ {[%emt 0:02:19]} Qxf5 {[%emt 0:02:32]} 35. gxf5 {[%emt 0:00:03]} Ke7 {[%emt 0:00:35]} 36. c4 {[%emt 0:01:49]} Kf6 {[%emt 0:00:15]} 37. Kc2 {[%emt 0:00:11]} Kxf5 {[%emt 0:00:11]} 38. Kd3 {[%emt 0:00:11]} g5 {[%emt 0:00:26]} 39. c5 {[%emt 0:01:27]} Bc7 {[%emt 0:00:29]} 40. Kc4 {[%emt 0:00:09]} Ke4 {[%emt 0:00:32]} 41. b4 {[%emt 0:31:08]} h5 {[%emt 0:32:33]} 42. a4 {[%emt 0:00:37]} a6 {[%emt 0:00:29]} 43. Kc3 {[%emt 0:02:29]} g4 {[%emt 0:01:03]} 44. hxg4 {[%emt 0:00:51]} hxg4 {[%emt 0:00:09]} 45. Kd2 {[%emt 0:00:03]} Kxd4 {[%emt 0:00:36]} 46. Ke2 {[%emt 0:00:38]} Kc4 {[%emt 0:00:12]} 47. Kf2 {[%emt 0:00:21]} Kxb4 0-1

[Event "GER-ch Youth U12 2020"]
[Site "Willingen"]
[Date "2020.10.30"]
[Round "5.2"]
[White "Nitsche, Nikolai"]
[Black "Udelnov, Valentin"]
[Result "1-0"]
[ECO "A45"]
[WhiteElo "1721"]
[BlackElo "1691"]
[Annotator "NA RC"]
[PlyCount "77"]
[EventDate "2020.10.27"]
[EventType "swiss"]
[EventRounds "7"]
[EventCountry "GER"]
[SourceTitle "playchess.com"]
[Source "ChessBase"]
[SourceQuality "1"]
[TimeControl "40/5400+30:1800+30"]

1. d4 {[%emt 0:00:00]} Nf6 {[%emt 0:00:00]} 2. Bf4 {[%emt 0:00:03]} g6 {[%emt 0:00:00]} 3. e3 {[%emt 0:00:07]} Bg7 {[%emt 0:00:07]} 4. h3 {[%emt 0:00:12]} d6 {[%emt 0:00:10]} 5. Nf3 {[%emt 0:00:19]} O-O {[%emt 0:01:06]} 6. Be2 {[%emt 0:01:33]} Nfd7 {[%emt 0:00:55]} 7. Bh2 {[%emt 0:02:38]} e5 {[%emt 0:01:06]} 8. O-O {[%emt 0:00:41]} Nc6 {[%emt 0:00:43]} 9. c4 {[%emt 0:06:20]} f5 {[%emt 0:02:13]} 10. Nc3 {[%emt 0:00:58]} h6 {[%emt 0:02:57]} 11. Rb1 {[%emt 0:05:43]} g5 {[%emt 0:03:05]} 12. b4 {[%emt 0:02:11]} g4 {[%emt 0:02:10]} 13. hxg4 {[%emt 0:01:40]} fxg4 {[%emt 0:00:09]} 14. Ne1 {[%emt 0:04:36]} h5 {[%emt 0:07:26]} 15. Nc2 {[%emt 0:10:46]} Ne7 {[%emt 0:04:48]} 16. c5 {[%emt 0:03:48]} Ng6 {[%emt 0:02:13]} 17. Bd3 {[%emt 0:05:23]} Nh4 {[%emt 0:02:54]} 18. c6 {[%emt 0:13:32]} bxc6 {[%emt 0:07:19]} 19. Be4 {[%emt 0:00:21]} Bb7 {[%emt 0:03:39]} 20. b5 {[%emt 0:00:52]} Nf6 {[%emt 0:06:34]} 21. Bxc6 {[%emt 0:04:33]} Bxc6 {[%emt 0:00:19]} 22. bxc6 {[%emt 0:00:06]} e4 {[%emt 0:01:35]} 23. d5 {[%emt 0:02:43]} Qe7 {[%emt 0:04:53]} 24. Nd4 {[%emt 0:02:43]} Nh7 {[%emt 0:00:38]} 25. Rb7 {[%emt 0:02:01]} Bxd4 {[%emt 0:01:38]} 26. Qxd4 {[%emt 0:00:08]} Ng5 {[%emt 0:00:15]} 27. Kh1 {[%emt 0:05:45]} Rf7 {[%emt 0:08:07]} 28. Nb5 {[%emt 0:14:46]} Qf8 {[%emt 0:08:02]} 29. Bf4 {[%emt 0:01:06]} Nf5 {[%emt 0:03:48]} 30. Qc4 {[%emt 0:01:20]} Qd8 {[%emt 0:00:59]} 31. Nxc7 {[%emt 0:01:01]} Rxc7 {[%emt 0:06:43]} 32. Rxc7 {[%emt 0:00:05]} Qxc7 {[%emt 0:00:02]} 33. Bxg5 {[%emt 0:00:07]} Qg7 {[%emt 0:00:30]} 34. c7 {[%emt 0:00:36]} Qxg5 {[%emt 0:02:01]} 35. c8=Q+ {[%emt 0:00:07]} Rxc8 {[%emt 0:00:07]} 36. Qxc8+ {[%emt 0:00:04]} Kf7 {[%emt 0:00:41]} 37. Qe6+ {[%emt 0:00:26]} Kg7 {[%emt 0:00:52]} 38. Rb1 {[%emt 0:00:09]} Ne7 {[%emt 0:00:48]} 39. Rb7 {[%emt 0:02:06]} 1-0

[Event "GER-ch Youth U12 2020"]
[Site "Willingen"]
[Date "2020.10.30"]
[Round "5.4"]
[White "Korek, Jakob Alexander"]
[Black "Haubold, Sebastian Marcel"]
[Result "1/2-1/2"]
[ECO "A49"]
[WhiteElo "1592"]
[BlackElo "1769"]
[Annotator "NA RC"]
[PlyCount "94"]
[EventDate "2020.10.27"]
[EventType "swiss"]
[EventRounds "7"]
[EventCountry "GER"]
[SourceTitle "playchess.com"]
[Source "ChessBase"]
[SourceQuality "1"]
[TimeControl "40/5400+30:1800+30"]

1. d4 Nf6 {[%emt 0:00:00]} 2. Nf3 {[%emt 0:00:00]} g6 {[%emt 0:00:00]} 3. g3 {[%emt 0:00:00]} Bg7 {[%emt 0:00:45]} 4. Bg2 {[%emt 0:00:04]} O-O {[%emt 0:00:48]} 5. O-O {[%emt 0:00:18]} d6 {[%emt 0:01:16]} 6. c4 {[%emt 0:00:33]} Nbd7 {[%emt 0:11:31]} 7. Nc3 {[%emt 0:04:17]} c5 {[%emt 0:00:30]} 8. dxc5 {[%emt 0:03:29]} Nxc5 {[%emt 0:03:42]} 9. Nd4 Qb6 {[%emt 0:07:02]} 10. Nc2 {[%emt 0:06:06]} Bd7 11. e4 Rac8 {[%emt 0:04:02]} 12. Qe2 {[%emt 0:14:45]} Na4 {[%emt 0:06:18]} 13. Nxa4 {[%emt 0:02:44]} Bxa4 {[%emt 0:02:01]} 14. b3 {[%emt 0:06:04]} Bc6 {[%emt 0:06:25]} 15. Be3 {[%emt 0:03:21]} Qc7 {[%emt 0:00:14]} 16. Bd4 {[%emt 0:04:51]} e5 {[%emt 0:02:27]} 17. Bb2 {[%emt 0:01:56]} b5 {[%emt 0:01:31]} 18. Nb4 {[%emt 0:08:58]} bxc4 {[%emt 0:00:52]} 19. Qxc4 {[%emt 0:03:27]} Bxe4 {[%emt 0:00:42]} 20. Qxc7 {[%emt 0:03:40]} Rxc7 {[%emt 0:00:29]} 21. Rfd1 {[%emt 0:02:05]} Bxg2 {[%emt 0:02:25]} 22. Kxg2 {[%emt 0:00:19]} Rb7 {[%emt 0:07:03]} 23. Nc6 {[%emt 0:01:21]} Rd7 {[%emt 0:10:11]} 24. Ba3 {[%emt 0:01:23]} Ne8 {[%emt 0:03:37]} 25. Rd5 {[%emt 0:03:42]} f6 {[%emt 0:11:40]} 26. Rad1 {[%emt 0:02:15]} Rff7 {[%emt 0:01:00]} 27. Bxd6 {[%emt 0:01:52]} Nxd6 {[%emt 0:03:04]} 28. Rxd6 {[%emt 0:00:33]} Rxd6 {[%emt 0:00:10]} 29. Rxd6 {[%emt 0:00:09]} Bf8 {[%emt 0:00:12]} 30. Rd8 {[%emt 0:01:24]} Rc7 {[%emt 0:00:11]} 31. Nb4 {[%emt 0:02:27]} Kf7 {[%emt 0:00:49]} 32. Nd3 {[%emt 0:02:48]} Ba3 {[%emt 0:04:13]} 33. Rd5 {[%emt 0:06:02]} Ke6 {[%emt 0:00:25]} 34. Ra5 {[%emt 0:00:48]} Bd6 {[%emt 0:00:19]} 35. Ra4 {[%emt 0:01:42]} Kd5 {[%emt 0:01:41]} 36. Nb4+ Bxb4 {[%emt 0:00:18]} 37. Rxb4 {[%emt 0:02:43]} e4 {[%emt 0:00:55]} 38. Ra4 {[%emt 0:02:32]} f5 {[%emt 0:01:50]} 39. Kf1 {[%emt 0:01:44]} Rc1+ {[%emt 0:03:59]} 40. Ke2 {[%emt 0:01:26]} Rc2+ {[%emt 0:00:43]} 41. Ke1 {[%emt 0:30:59]} e3 {[%emt 0:33:31]} 42. fxe3 {[%emt 0:02:36]} Rxh2 {[%emt 0:01:01]} 43. Kf1 {[%emt 0:04:40]} a6 {[%emt 0:00:00]} 44. Rd4+ {[%emt 0:00:00]} Ke5 {[%emt 0:00:00]} 45. Ra4 {[%emt 0:00:00]} Rc2 {[%emt 0:00:00]} 46. Kg1 {[%emt 0:00:00]} Re2 {[%emt 0:00:00]} 47. Kf1 {[%emt 0:00:00]} Rc2 {[%emt 0:00:00]} 1/2-1/2

[Event "GER-ch Youth U12 2020"]
[Site "Willingen"]
[Date "2020.10.30"]
[Round "5.5"]
[White "Kieselbach, Jannik"]
[Black "Hoppstädter, Daniel"]
[Result "0-1"]
[ECO "B09"]
[WhiteElo "1453"]
[BlackElo "1712"]
[Annotator "NA RC"]
[PlyCount "58"]
[EventDate "2020.10.27"]
[EventType "swiss"]
[EventRounds "7"]
[EventCountry "GER"]
[SourceTitle "playchess.com"]
[Source "ChessBase"]
[SourceQuality "1"]
[TimeControl "40/5400+30:1800+30"]

1. d4 {[%emt 0:00:00]} Nf6 {[%emt 0:00:00]} 2. Nc3 {[%emt 0:00:00]} g6 {[%emt 0:00:09]} 3. e4 {[%emt 0:00:00]} d6 {[%emt 0:00:21]} 4. f4 {[%emt 0:00:16]} Bg7 {[%emt 0:02:27]} 5. Nf3 {[%emt 0:00:34]} O-O {[%emt 0:00:14]} 6. Bd3 {[%emt 0:01:15]} Bg4 {[%emt 0:02:11]} 7. h3 {[%emt 0:04:53]} Bxf3 {[%emt 0:00:27]} 8. Qxf3 {[%emt 0:01:48]} e5 {[%emt 0:02:31]} 9. d5 {[%emt 0:03:25]} exf4 {[%emt 0:02:44]} 10. Bxf4 {[%emt 0:02:06]} Nh5 {[%emt 0:01:24]} 11. Bd2 {[%emt 0:01:01]} Qh4+ {[%emt 0:03:09]} 12. Qf2 {[%emt 0:02:25]} Qg3 {[%emt 0:01:17]} 13. Be2 {[%emt 0:03:47]} Bd4 {[%emt 0:01:01]} 14. Qxg3 {[%emt 0:02:16]} Nxg3 {[%emt 0:00:04]} 15. Rh2 {[%emt 0:03:58]} Bg1 {[%emt 0:00:42]} 16. Rh1 {[%emt 0:03:24]} Nxh1 {[%emt 0:00:39]} 17. O-O-O {[%emt 0:00:12]} Ng3 {[%emt 0:00:56]} 18. Rxg1 {[%emt 0:00:07]} Nxe2+ {[%emt 0:00:04]} 19. Nxe2 {[%emt 0:00:11]} Nd7 {[%emt 0:00:24]} 20. g4 {[%emt 0:01:51]} Nc5 {[%emt 0:00:58]} 21. Ng3 {[%emt 0:01:34]} Rfe8 {[%emt 0:01:26]} 22. Re1 {[%emt 0:02:04]} f6 {[%emt 0:01:25]} 23. b4 {[%emt 0:01:40]} Nd7 {[%emt 0:00:44]} 24. Rf1 {[%emt 0:03:28]} Kg7 {[%emt 0:10:16]} 25. h4 {[%emt 0:04:02]} Ne5 {[%emt 0:01:57]} 26. g5 {[%emt 0:22:37]} fxg5 {[%emt 0:01:20]} 27. hxg5 {[%emt 0:03:47]} Rf8 {[%emt 0:02:02]} 28. Rd1 {[%emt 0:02:30]} Rf2 {[%emt 0:01:39]} 29. Rg1 {[%emt 0:15:59]} Rxd2 {[%emt 0:00:38]} 0-1

[Event "GER-ch Youth U12 2020"]
[Site "Willingen"]
[Date "2020.10.30"]
[Round "5.6"]
[White "Klaska, Philipp Leon"]
[Black "Honisch, Alexander"]
[Result "1/2-1/2"]
[ECO "C78"]
[WhiteElo "1716"]
[BlackElo "1667"]
[Annotator "NA RC"]
[PlyCount "91"]
[EventDate "2020.10.27"]
[EventType "swiss"]
[EventRounds "7"]
[EventCountry "GER"]
[SourceTitle "playchess.com"]
[Source "ChessBase"]
[SourceQuality "1"]
[TimeControl "40/5400+30:1800+30"]

1. e4 e5 {[%emt 0:00:00]} 2. Nf3 {[%emt 0:00:07]} Nc6 {[%emt 0:00:40]} 3. Bb5 {[%emt 0:00:04]} a6 {[%emt 0:00:36]} 4. Ba4 {[%emt 0:00:29]} Nf6 5. O-O {[%emt 0:00:16]} b5 {[%emt 0:01:16]} 6. Bb3 {[%emt 0:02:36]} Bc5 {[%emt 0:03:17]} 7. Re1 {[%emt 0:02:48]} d6 {[%emt 0:07:17]} 8. c3 {[%emt 0:00:30]} Bg4 {[%emt 0:02:37]} 9. d3 {[%emt 0:06:01]} h6 10. Be3 O-O {[%emt 0:10:58]} 11. Nbd2 {[%emt 0:05:40]} Qd7 {[%emt 0:05:06]} 12. Nf1 {[%emt 0:02:53]} Rfe8 {[%emt 0:03:27]} 13. h3 Be6 {[%emt 0:04:18]} 14. Bxe6 {[%emt 0:17:26]} fxe6 {[%emt 0:02:26]} 15. Bxc5 {[%emt 0:03:07]} dxc5 {[%emt 0:00:02]} 16. Qe2 {[%emt 0:06:02]} Red8 {[%emt 0:11:21]} 17. Rad1 {[%emt 0:03:42]} Qe7 {[%emt 0:02:56]} 18. Ne3 {[%emt 0:05:40]} a5 {[%emt 0:04:54]} 19. Nc2 {[%emt 0:07:50]} Rab8 {[%emt 0:12:32]} 20. d4 {[%emt 0:08:01]} exd4 {[%emt 0:00:54]} 21. cxd4 {[%emt 0:01:10]} e5 {[%emt 0:00:32]} 22. d5 {[%emt 0:03:37]} Nd4 {[%emt 0:00:16]} 23. Ncxd4 {[%emt 0:02:18]} exd4 {[%emt 0:01:01]} 24. Rc1 {[%emt 0:04:09]} Re8 {[%emt 0:03:43]} 25. e5 {[%emt 0:03:26]} Nxd5 {[%emt 0:01:52]} 26. Qe4 {[%emt 0:03:16]} Rbd8 {[%emt 0:02:11]} 27. Nh4 {[%emt 0:02:29]} d3 {[%emt 0:03:30]} 28. Ng6 {[%emt 0:01:39]} Qf7 {[%emt 0:02:57]} 29. Rxc5 {[%emt 0:00:35]} Re6 {[%emt 0:01:21]} 30. Rxd5 {[%emt 0:01:22]} Rxd5 {[%emt 0:00:20]} 31. Qxd5 {[%emt 0:00:30]} Qxg6 {[%emt 0:00:34]} 32. Qxb5 {[%emt 0:00:50]} d2 {[%emt 0:04:56]} 33. Rd1 {[%emt 0:00:29]} Qc2 {[%emt 0:02:25]} 34. Qb3 {[%emt 0:00:34]} Qxb3 {[%emt 0:01:40]} 35. axb3 {[%emt 0:00:05]} Rxe5 {[%emt 0:00:09]} 36. Rxd2 {[%emt 0:00:11]} Rb5 {[%emt 0:02:28]} 37. Rd3 {[%emt 0:00:38]} c5 {[%emt 0:02:03]} 38. Kf1 {[%emt 0:00:48]} c4 {[%emt 0:01:15]} 39. bxc4 {[%emt 0:03:34]} Rxb2 {[%emt 0:00:14]} 40. Rc3 {[%emt 0:01:17]} a4 {[%emt 0:00:13]} 41. Ke1 {[%emt 0:32:11]} Kf7 {[%emt 0:31:12]} 42. c5 {[%emt 0:00:00]} Ke7 {[%emt 0:00:00]} 43. c6 {[%emt 0:00:00]} Kd8 {[%emt 0:00:00]} 44. c7+ {[%emt 0:00:00]} Kc8 {[%emt 0:00:00]} 45. Ra3 {[%emt 0:00:00]} Rb4 {[%emt 0:00:00]} 46. Rc3 {[%emt 0:00:00]} 1/2-1/2

[Event "GER-ch Youth U12 2020"]
[Site "Willingen"]
[Date "2020.10.30"]
[Round "5.7"]
[White "Navarro Jahnke, Leo"]
[Black "Fruth, David"]
[Result "0-1"]
[ECO "B13"]
[WhiteElo "1686"]
[BlackElo "1665"]
[Annotator "NA RC"]
[PlyCount "50"]
[EventDate "2020.10.27"]
[EventType "swiss"]
[EventRounds "7"]
[EventCountry "GER"]
[SourceTitle "playchess.com"]
[Source "ChessBase"]
[SourceQuality "1"]
[TimeControl "40/5400+30:1800+30"]

1. d4 {[%emt 0:00:00]} Nf6 {[%emt 0:00:00]} 2. Bf4 {[%emt 0:00:08]} c5 {[%emt 0:00:00]} 3. e3 {[%emt 0:00:07]} cxd4 {[%emt 0:00:00]} 4. exd4 {[%emt 0:00:11]} d5 {[%emt 0:00:00]} 5. c3 {[%emt 0:01:28]} Nc6 {[%emt 0:00:00]} 6. Bd3 {[%emt 0:00:22]} a6 {[%emt 0:00:00]} 7. Nf3 {[%emt 0:00:47]} Bg4 {[%emt 0:00:00]} 8. Nbd2 {[%emt 0:00:47]} e6 {[%emt 0:00:08]} 9. h3 {[%emt 0:01:17]} Bh5 {[%emt 0:00:42]} 10. O-O {[%emt 0:00:47]} Bd6 {[%emt 0:00:02]} 11. Bxd6 {[%emt 0:00:37]} Qxd6 {[%emt 0:00:02]} 12. Re1 {[%emt 0:02:17]} O-O {[%emt 0:00:10]} 13. g4 {[%emt 0:05:51]} Bg6 {[%emt 0:00:07]} 14. Bxg6 {[%emt 0:00:41]} hxg6 {[%emt 0:00:24]} 15. Ne5 {[%emt 0:02:51]} Nd7 {[%emt 0:00:20]} 16. f4 {[%emt 0:02:27]} Ndxe5 {[%emt 0:00:58]} 17. fxe5 {[%emt 0:00:42]} Qc7 {[%emt 0:00:35]} 18. Rf1 {[%emt 0:02:05]} f6 {[%emt 0:00:12]} 19. exf6 {[%emt 0:01:12]} Qg3+ {[%emt 0:00:21]} 20. Kh1 {[%emt 0:00:12]} Qxh3+ {[%emt 0:00:02]} 21. Kg1 {[%emt 0:00:10]} Qg3+ {[%emt 0:00:05]} 22. Kh1 {[%emt 0:00:08]} Kf7 {[%emt 0:00:03]} 23. fxg7+ {[%emt 0:09:51]} Kxg7 {[%emt 0:00:02]} 24. Rxf8 {[%emt 0:00:22]} Rxf8 {[%emt 0:00:02]} 25. Qg1 {[%emt 0:00:19]} Rh8+ {[%emt 0:00:02]} 0-1